Cogmind - Beta 13 @@@ ROGUE MODE // 2024.04.27 @ 18:26:15 Player: Olafz Result: Destroyed by H-55 Commando with Assault Rifle Performance ------------- Evolutions (2) 1000 Regions Visited (5) 1000 Robots Destroyed (85) 425 Value Destroyed (2945) 2945 Prototype IDs (5) 100 Alien Tech Used (0) 0 Bonus (1451) 1451 TOTAL SCORE: 6921 Bonus ------- High Alert Combat Kills 251 Entered Garrisons 200 Used RIF Installer 1000 Cogmind --------- Core Integrity 0/550 Matter 295/300 Energy 150/150 System Corruption 4% Temperature Cool (0) Movement Walking (183) Ox1 Location -8/Garrison Parts ------- > --- POWER (1) -------- Micro Nuclear Core > --- PROPULSION (3) --- Aluminum Leg VSS Leg VSS Leg > --- UTILITY (5) ------ Improved Heat Sink Cooling System Large Storage Unit Hacking Suite > --- WEAPON (2) ------- Heavy Particle Gun Heavy Particle Gun > --- INVENTORY (15) --- Nuclear Core Improved Heat Sink Medium Storage Unit Compact Battery (200) Sensor Array Improved Signal Interpreter Relay Coupler [Grunt] (22) Relay Coupler [Sentry] (17) Relay Coupler [Hunter] (18) Heavy EM Shotgun Great Maul Peak State ------------ > --- POWER ------------ Micro Nuclear Core > --- PROPULSION ------- Aluminum Leg VSS Leg VSS Leg > --- UTILITY ---------- Improved Heat Sink Cooling System Large Storage Unit Hardened Medium Armor Plating Hacking Suite > --- WEAPON ----------- Heavy Particle Gun Heavy Particle Gun > --- INVENTORY -------- Nuclear Core Aluminum Leg Improved Heat Sink Medium Storage Unit Compact Battery Sensor Array Improved Signal Interpreter Relay Coupler [Grunt] Relay Coupler [Sentry] Relay Coupler [Hunter] Heavy EM Shotgun Great Maul [Rating: 34] Favorites ----------- Power Light Ion Engine Engine Light Ion Engine Power Core Nuclear Core Propulsion Aluminum Leg Leg Aluminum Leg Utility Large Storage Unit Device Structural Scanner Storage Large Storage Unit Hackware Hacking Suite Protection Hardened Medium Armor Plating Weapon Heavy Particle Gun Energy Gun Heavy Particle Gun Ballistic Gun Light Assault Rifle Impact Weapon Great Maul Build | -11 -10 -9 -8 -8 -8 ------- Run | Yrd Mat Mat Mat Sto Gar Slots Evolved 4 | . . 2 2 . . Power . | . . . . . . Propulsion 1 | . . 1 . . . Utility 3 | . . 1 2 . . Weapon . | . . . . . . Parts Attached 69 | . 5 21 11 11 21 Power 13 | . 2 3 3 1 4 Engine 10 | . 2 3 3 . 2 Core 3 | . . . . 1 2 Reactor . | . . . . . . Propulsion 24 | . . 7 3 4 10 Treads . | . . . . . . Leg 24 | . . 7 3 4 10 Wheel . | . . . . . . Hover . | . . . . . . Flight . | . . . . . . Utility 15 | . 3 4 3 1 4 Device 9 | . 1 3 2 . 3 Storage 3 | . 2 1 . . . Processor . | . . . . . . Hackware 2 | . . . 1 1 . Protection 1 | . . . . . 1 Artifact . | . . . . . . Weapon 17 | . . 7 2 5 3 Energy Gun 15 | . . 6 2 4 3 Energy Cannon . | . . . . . . Ballistic Gun 1 | . . 1 . . . Ballistic Cannon . | . . . . . . Launcher . | . . . . . . Special Weapon . | . . . . . . Impact Weapon 1 | . . . . 1 . Slashing Weapon . | . . . . . . Piercing Weapon . | . . . . . . Special Melee Weapon . | . . . . . . Unidentified Prototypes 1 | . . . . 1 . Parts Lost 32 | . 1 2 7 3 19 Power 8 | . 1 1 2 1 3 Propulsion 12 | . . . 3 1 8 Utility 7 | . . . 1 1 5 Weapon 5 | . . 1 1 . 3 Highest Loss Streak 6 | . 1 2 3 3 6 To Critical Strikes . | . . . . . . Average Slot Usage (%) 92 | . 93 93 91 96 88 Engine 6 | . 10 10 9 1 2 Core 3 | . . . . 7 6 Leg 25 | . 28 28 26 26 20 Device 16 | . 7 20 20 19 15 Storage 10 | . 18 11 9 9 9 Hackware 8 | . . . 8 14 14 Energy Gun 16 | . 14 15 17 17 17 Ballistic Gun 3 | . 14 6 . . . Naked Turns . | . . . . . . Heaviest Build 43 | 11 20 35 41 36 43 Greatest Support 45 | 20 20 45 45 35 35 Greatest Overweight (x) 11 | . . 1 1 1 11 Average Overweight (x) . | . . . . . . Largest Inventory Capacity 15 | . 10 15 15 15 15 Average Capacity 14 | . 9 14 15 15 15 Most Carried 15 | . 10 15 15 15 15 Average Carried 12 | . 5 13 14 14 11 Final Capacity 15 | 8 10 15 15 15 15 Final Carried 15 | 6 10 14 13 15 11 Class Distribution -------------------- 51% | Mutant 28% | Hacker-Mutant 19% | Scavenger-Mutant Dominant Class ---------------- Mutant | -10/Materials Mutant | -9/Materials Mutant | -8/Materials Hacker-Mutant | -8/Storage Hacker-Mutant | -8/Garrison Resources | -11 -10 -9 -8 -8 -8 ----------- Run | Yrd Mat Mat Mat Sto Gar Matter Collected 849 | 200 68 226 55 87 213 Remotely . | . . . . . . Salvage Created 2933 | . 290 903 543 426 771 Parts 146 | . 29 60 21 11 25 Haulers Intercepted 2 | . 1 . . 1 . Recyclers Shooed 5 | . 2 3 . . . Parts Field Recycled . | . . . . . . Retrieved Matter . | . . . . . . Parts Self-Destructed . | . . . . . . Prevented . | . . . . . . Kills | -11 -10 -9 -8 -8 -8 ------- Run | Yrd Mat Mat Mat Sto Gar Combat Hostiles Destroyed 73 | . 9 24 12 9 19 Guns 65 | . 7 23 9 8 18 AOE 2 | . 2 . . . . Classes Destroyed 14 | . 5 3 1 . 5 Worker 3 | . . 2 . 1 . Builder 1 | . . . 1 . . Hauler 2 | . 1 . . 1 . Recycler 1 | . . 1 . . . Operator 2 | . 1 . 1 . . Watcher 3 | . 1 2 . . . Swarmer 24 | . 6 8 3 3 4 Grunt 31 | . 3 11 8 5 4 Brawler 1 | . . . . . 1 Duelist 3 | . . . . . 3 Sentry 8 | . . 5 1 1 1 Specialist 2 | . . . . . 2 Hunter 1 | . . . . . 1 Programmer 3 | . . . . . 3 Best Kill Streak 7 | . 6 7 4 4 3 Combat Bots Only 6 | . 6 6 4 3 3 Max Kills in Single Turn 2 | . 2 2 2 1 1 Gunslinging 1 | . . 1 1 . . Exploded 2 | . 2 . . . . Melee . | . . . . . . Uniques/NPCs Destroyed . | . . . . . . Combat | -11 -10 -9 -8 -8 -8 -------- Run | Yrd Mat Mat Mat Sto Gar Hostile Shots Fired 433 | . 21 114 83 57 158 Missed 131 | . 1 39 24 16 51 Damage Taken 4322 | . 218 840 911 567 1786 Core 742 | . 63 127 172 65 315 Absorbed by Shields . | . . . . . . Regen/Repaired (Parts) 90 | . . 90 . . . Core Remaining (%) 80 | 100 74 68 . . . Volleys Fired 255 | . 28 67 56 35 69 Largest 2 | . 2 2 2 2 2 Hottest 125 | . 60 121 125 116 116 Shots Fired 500 | . 56 134 105 70 135 Gun 500 | . 56 134 105 70 135 Cannon . | . . . . . . Launcher . | . . . . . . Special . | . . . . . . Kinetic 62 | . 28 34 . . . Thermal 410 | . . 100 105 70 135 Explosive . | . . . . . . Electromagnetic 28 | . 28 . . . . Robot Hit Streak 14 | . 10 9 9 14 13 Robot Miss Streak 8 | . 4 8 2 3 4 Penetration Max . | . . . . . . Secondary Targets 10 | . . 4 2 1 3 Max Gunslinging Chain 1 | . . 1 1 1 1 Shots Hit Robots 335 | . 31 86 72 54 92 Core Hits 161 | . 18 73 24 15 31 Critical Kills . | . . . . . . Critical Parts Destroyed 1 | . . . . 1 . Critical Strikes 22 | . . 7 5 4 6 Burn 21 | . . 7 5 3 6 Smash 1 | . . . . 1 . Melee Attacks 2 | . . . . 2 . Impact 2 | . . . . 2 . Slashing . | . . . . . . Piercing . | . . . . . . Sneak Attacks 1 | . . . . 1 . Combat Hostiles . | . . . . . . Follow-up Attacks . | . . . . . . Damage Inflicted 5820 | . 466 1166 1182 1120 1886 Guns 5630 | . 388 1166 1182 1008 1886 Cannons . | . . . . . . Explosions 73 | . 73 . . . . Melee 112 | . . . . 112 . Ramming 5 | . 5 . . . . Kinetic 290 | . 113 177 . . . Thermal 5138 | . 73 989 1182 1008 1886 Explosive . | . . . . . . Electromagnetic 275 | . 275 . . . . Impact 112 | . . . . 112 . Slashing . | . . . . . . Piercing . | . . . . . . Highest Corruption 4 | . . . . . 4 Average Corruption 3 | . . . . . 3 Corruption Purged . | . . . . . . Corruption Blocked . | . . . . . . Effects 19 | . . . . . 19 Message Errors 1 | . . . . . 1 Matter Fused 5 | . . . . . 5 Heat Flow Errors 2 | . . . . . 2 Energy Discharges 1 | . . . . . 1 Data Loss (minor) 4 | . . . . . 4 Data Loss (major) 1 | . . . . . 1 Misfires 2 | . . . . . 2 Alerts 1 | . . . . . 1 Weapon Failures 2 | . . . . . 2 Overload Shots . | . . . . . . Overflow Damage 112 | . . . . 112 . Projectiles . | . . . . . . Explosions . | . . . . . . Melee 112 | . . . . 112 . Knockbacks . | . . . . . . Impact . | . . . . . . Kinetic . | . . . . . . Secondary . | . . . . . . Self-Inflicted Damage 128 | . 37 . . . 91 Shots 2 | . 1 . . . 1 Rammed . | . . . . . . Targets Rammed 3 | . 2 . . 1 . Kicked 3 | . 2 . . 1 . Crushed . | . . . . . . Highest Temperature 178 | . 70 144 114 93 178 Average Temperature 34 | . 21 33 39 31 75 Received Heat Transfer 1428 | . 30 255 549 378 216 Siege Activations . | . . . . . . Robots Corrupted . | . . . . . . Combat Hostiles . | . . . . . . Parts Fried 1 | . . . . 1 . Impact Corruptions 1 | . . . . 1 . Robots Melted 6 | . . 1 3 1 1 Combat Hostiles 6 | . . 1 3 1 1 Parts Melted 34 | . . 10 8 4 12 Heat Transferred 11825 | . 100 2586 3108 2183 3848 Parts Sabotaged . | . . . . . . Parts Stolen . | . . . . . . Parts Stripped . | . . . . . . Power Chain Reactions 1 | . 1 . . . . Alert | -11 -10 -9 -8 -8 -8 ------- Run | Yrd Mat Mat Mat Sto Gar Peak Influence 702 | . 266 496 549 353 702 Initial 231 | . . 27 209 231 202 Average 333 | . 133 201 409 276 536 Maximum Alert Level 3 | . 1 2 2 1 3 Low Security (%) 24 | . 49 61 . 12 . Level 1 36 | . 50 16 33 87 17 Level 2 38 | . . 21 66 . 80 Level 3 . | . . . . . 1 Level 4 . | . . . . . . Level 5 . | . . . . . . High Security . | . . . . . . Max Security . | . . . . . . Squads Dispatched 5 | . 1 2 1 1 . Investigation 3 | . . 2 . 1 . Extermination . | . . . . . . Reinforcement 2 | . 1 . 1 . . Assault . | . . . . . . Garrison . | . . . . . . Intercept . | . . . . . . Searches Triggered . | . . . . . . Construction Impeded . | . . . . . . Haulers Reinforced . | . . . . . . Active Scanning Responses . | . . . . . . Cargo Convoy Interrupts . | . . . . . . Stealth | -11 -10 -9 -8 -8 -8 --------- Run | Yrd Mat Mat Mat Sto Gar Distress Signals 4 | . 2 1 . 1 . Communications Jammed . | . . . . . . Distress Signals . | . . . . . . Times Spotted 98 | . 13 30 21 12 22 Peak Tracking Total 6 | . 6 6 6 2 6 Tactical Retreats 4 | . . 1 2 . 1 Traps | -11 -10 -9 -8 -8 -8 ------- Run | Yrd Mat Mat Mat Sto Gar Traps Triggered 3 | . . 1 . 1 1 Indirectly . | . . . . . . Trap Hack Attempts . | . . . . . . Triggered . | . . . . . . Disarmed . | . . . . . . Reprogrammed . | . . . . . . Reused . | . . . . . . Traps Extracted . | . . . . . . Installed . | . . . . . . Triggered 1 | . 1 . . . . Machines | -11 -10 -9 -8 -8 -8 ---------- Run | Yrd Mat Mat Mat Sto Gar Machines Disabled 6 | . 1 . 1 1 3 Max in Single Turn 2 | . 1 . 1 1 2 Garrison Relay 1 | . . . . . 1 Phase Generator 1 | . . . . . 1 Machines Repaired . | . . . . . . Machines Dismantled . | . . . . . . Machines Sabotaged . | . . . . . . Overloaded Fab Kills . | . . . . . . Hacking | -11 -10 -9 -8 -8 -8 --------- Run | Yrd Mat Mat Mat Sto Gar Machines Accessed 14 | . 3 4 1 4 2 Terminals 11 | . 2 3 1 3 2 Fabricators . | . . . . . . Repair Stations 1 | . . 1 . . . Recycling Units 1 | . 1 . . . . Scanalyzers . | . . . . . . Garrison Access 1 | . . . . 1 . Total Hacks 34 | . 9 11 6 4 4 Successful 18 | . 1 7 5 4 1 Failed 16 | . 8 4 1 . 3 Catastrophic 3 | . 2 . . . 1 Database Lockouts . | . . . . . . Manual 14 | . 8 4 2 . . Terminals 30 | . 8 9 6 3 4 Fabricators . | . . . . . . Repair Stations 2 | . . 2 . . . Recycling Units 1 | . 1 . . . . Scanalyzers . | . . . . . . Garrison Access 1 | . . . . 1 . Terminal Hacks 11 | . . 3 4 3 1 Prototype ID Bank 2 | . . 1 1 . . Open Door 3 | . . . . 3 . Branch Access Points 2 | . . 1 1 . . Locate Traps 1 | . . . 1 . . Registered Prototypes 1 | . . . 1 . . Zone Layout 1 | . . 1 . . . Patrol Navigation 1 | . . . . . 1 Fabricator Hacks . | . . . . . . Repair Station Hacks 2 | . . 2 . . . Scan Component 1 | . . 1 . . . Repair 1 | . . 1 . . . Recycling Unit Hacks 1 | . 1 . . . . Retrieve Components 1 | . 1 . . . . Scanalyzer . | . . . . . . Garrison Access Hacks 1 | . . . . 1 . Unlock Access 1 | . . . . 1 . Unauthorized Hacks 3 | . . 2 1 . . Terminals 3 | . . 2 1 . . Botnet 3 | . . 2 1 . . Fabricators . | . . . . . . Repair Stations . | . . . . . . Recycling Units . | . . . . . . Scanalyzers . | . . . . . . Garrison Access . | . . . . . . Data Cores Recovered 2 | . 1 . 1 . . Used 1 | . . . 1 . . Hacking Detections 8 | . 2 2 1 1 2 Full Trace Events 5 | . 2 2 . . 1 Feedback Events . | . . . . . . Feedback Blocked . | . . . . . . Robot Schematics Acquired . | . . . . . . Robots Built . | . . . . . . Authchips . | . . . . . . Time . | . . . . . . Total Robot Build Rating . | . . . . . . Part Schematics Acquired . | . . . . . . Parts Built . | . . . . . . Authchips . | . . . . . . Time . | . . . . . . Total Part Build Rating . | . . . . . . Parts Repaired 1 | . . 1 . . . Time 38 | . . 38 . . . Parts Recycled . | . . . . . . Recycled Matter . | . . . . . . Retrieved Matter . | . . . . . . Retrieved Components 6 | . 6 . . . . Parts Scanalyzed . | . . . . . . Part Schematics Acquired . | . . . . . . Parts Damaged . | . . . . . . Bothacking | -11 -10 -9 -8 -8 -8 ------------ Run | Yrd Mat Mat Mat Sto Gar Used RIF Installer 2 | . . . . . 2 Watcher Feeds 1 | . . . . . 1 Robots Hacked . | . . . . . . Non-combat . | . . . . . . Combat . | . . . . . . Robot Hacks Applied . | . . . . . . Relay Couplers Released 3 | . . . . . 3 Machine Destruction 3 | . . . . . 3 Fabnet Peak Effective % . | . . . . . . Robots Rewired . | . . . . . . Allies Hacked . | . . . . . . Hacks Repelled . | . . . . . . Allies | -11 -10 -9 -8 -8 -8 -------- Run | Yrd Mat Mat Mat Sto Gar Total Allies . | . . . . . . Largest Group . | . . . . . . Highest-Rated Group . | . . . . . . Highest-Rated Ally . | . . . . . . Total Orders . | . . . . . . Ally Attacks . | . . . . . . Total Damage . | . . . . . . Kills . | . . . . . . Allies Corrupted . | . . . . . . Allies Melted . | . . . . . . Intel | -11 -10 -9 -8 -8 -8 ------- Run | Yrd Mat Mat Mat Sto Gar Robot Analysis Total . | . . . . . . Derelict Logs Recovered . | . . . . . . Drone Launches . | . . . . . . Drone Recoveries . | . . . . . . Exploration | -11 -10 -9 -8 -8 -8 ------------- Run | Yrd Mat Mat Mat Sto Gar Turns Passed 3108 | . 428 793 390 551 946 Spaces Moved 1417 | 1 273 380 158 227 378 Core 1 | . . . . . 1 Treads . | . . . . . . Legs 1416 | 1 273 380 158 227 377 Wheels . | . . . . . . Hover . | . . . . . . Flight . | . . . . . . Fastest Speed 120 | 120 120 120 120 120 120 Average Speed 151 | 120 120 141 121 176 183 Slowest Speed 600 | 120 120 190 190 190 600 Overloaded Moves . | . . . . . . Propulsion Burnouts . | . . . . . . Robots Hopped . | . . . . . . Cave-ins Triggered . | . . . . . . Exploration Rate (%) 35 | 2 49 34 23 43 59 Regions Visited 5 Branch Regions 1 Pre-discovered Areas . | . . . . . . Known Exits Taken 2 | . . . 1 1 . Unknown Exits Taken 3 | 1 1 1 . . . Scrap Searched . | . . . . . . Spaces Dug . | . . . . . . Terrain Destroyed 65 | . 6 . . . 59 Melee . | . . . . . . Projectile 7 | . . . . . 7 AOE 58 | . 6 . . . 52 Terrain Rammed . | . . . . . . Walls Destroyed . | . . . . . . Machines Disabled . | . . . . . . Actions | -11 -10 -9 -8 -8 -8 --------- Run | Yrd Mat Mat Mat Sto Gar Total 1896 | . 325 514 254 309 494 Wait 60 | . 2 17 19 8 14 Move 1412 | . 272 379 157 226 378 Hop . | . . . . . . Pick Up 44 | . 8 10 6 11 9 Fast Attach 26 | . 3 8 5 3 7 Attach 21 | . 1 2 4 2 12 Detach 6 | . 2 2 . 2 . Swap 22 | . 1 11 2 6 2 Drop 45 | . 6 18 5 13 3 Fire 255 | . 28 67 56 35 69 Melee 2 | . . . . 2 . Ram . | . . . . . . Kick 3 | . 2 . . 1 . Crush . | . . . . . . Escape Stasis . | . . . . . . Rewire . | . . . . . . Trap . | . . . . . . Miscellaneous . | . . . . . . Route ------- -11/Scrapyard -10/Materials (discovered 2 exits: *Mat / [*Min]) -9/Materials (discovered 3 exits: *Mat / Min x2) -8/Materials -8/Storage (discovered 2 exits: [*Fac] / Gar) -8/Garrison (discovered 1 exit: [*Rec]) History --------- Turn | Location | Event 1 | -11/Scrapyard | Discovered new exit (range 0) 1 | -11/Scrapyard | Entered Materials 230 | -10/Materials | Discovered new exit (range 12) 305 | -10/Materials | Build established: Mutant 414 | -10/Materials | Discovered new exit (range 8) 429 | -10/Materials | Entered another Materials area 429 | -9/Materials | Evolved 2 slots: Propulsion x1, Utility x1 1053 | -9/Materials | Repaired Carbon-fiber Leg 1150 | -9/Materials | Identified exit to Mines 1199 | -9/Materials | Discovered new exit (range 3) 1222 | -9/Materials | Entered another Materials area 1222 | -8/Materials | Evolved 2 slots: Utility x2 1246 | -8/Materials | Identified exit to Storage 1564 | -8/Materials | Lost 3 parts (1n1u1w) 1612 | -8/Materials | Entered Storage 1721 | -8/Storage | Lost 3 parts (1p1n1u) 2120 | -8/Storage | Build established: Hacker-Mutant 2124 | -8/Storage | Discovered new exit (range 16) 2161 | -8/Storage | Identified exit to Garrison 2163 | -8/Storage | Entered Garrison 2267 | -8/Garrison | Triggered checkpoint 2333 | -8/Garrison | Phase Generator disabled 2380 | -8/Garrison | Lost 3 parts (2n1u) 2387 | -8/Garrison | Core integrity fell below 50% 2510 | -8/Garrison | Installed Relay Interface Framework 2552 | -8/Garrison | Lost 4 parts (1p1n1u1w) 2573 | -8/Garrison | Garrison Relay disabled 2790 | -8/Garrison | Core integrity fell below 20% 2831 | -8/Garrison | Lost 6 parts (1p2n2u1w) 2957 | -8/Garrison | Triggered checkpoint 3042 | -8/Garrison | Expanded RIF knowledge: Watcher Feeds 3064 | -8/Garrison | Discovered new exit (range 14) 3083 | -8/Garrison | Triggered checkpoint 3098 | -8/Garrison | Build established: Scavenger-Mutant 3109 | -8/Garrison | Destroyed by H-55 Commando with Assault Rifle Last Messages --------------- Melted Imp. Aluminum Leg. L-31 Rogue heat damages core (-7). L-31 Rogue overheating. Melee Analysis Suite melted. L-31 Rogue destroyed. Acquired 10 matter. Acquired Aluminum Leg. Acquired 10 matter. System corrupted: Component data lost. Initiating installation procedure... Expanded RIF knowledge: Watcher Feeds. EXIT=FOUND Beams of light sweep through the air. An alarm sounds. Penetrated by Slug. Slug penetrates Reinforced Barrier. Penetrated by Slug. Aluminum Leg destroyed. Slug penetrates H-55 Commando. Penetrated by Slug. Hrd. Medium Armor Plating destroyed. Map ----- +----------------------------------------------------+ | ?????????????????????????????????????????? | | ?????????????????????????????????????????? | | ?????????????????????????????????????????? | | ?????????????????????????????????????????? | | ?????????????????????????????????????????? | | ?????????????????????????????????????????? | | ?????????????????????????????????????????? | | ?????????????????????????????????????????? | | ?????????????????????????????????????????? | | ???????????????????????? ????????????????? | | ???????????????????????# ????????????????? | | ???????????????????????# ????????????????? | | ???????????????????????# ????????????????? | | ??????????????????????? ????????????????? | | ???????????????????????# ????????????????? | | ???????????????????????# ????????????????? | | ???????????????????????# #??####?????????? | | ???????????????????????# #?? #?????????? | | ???????????????????????# ### ##### #?? | | ???????????????????????# #? | | ???????????????????????# #? | | ???????????????????????# ##########?? ?? | | ???????????????????????# #??????????? ?? | | ???????????????????????# #??????????? ?? | | ????????# < ############ ############ #? | | ????????# @ h ? | | ????????# h ? | | ????????# ? | | ????????################# ############# #? | | ????????????????????????# #???????????# #? | | ????????????????????????# #???????????# #? | | ?????????????????######## #???????????# #? | | ?????????????????#"""" ## ############# #? | | ?????????????????#" #? | | ?????????????????#"""" ################ #? | | ?????????????????#######??????????????# ## | | ??????????????????????????????????????# | | ??????????????????????????????????????#### | | ?????????????????????????????????????????? | | ????????????????????????????????????????## | | ????????????????????????????????????????# | | ????????????????????????????????????##### | | ??????????######????????????????????##### | | ??????????#######???????????????????## | | ??????????## [ ###################### ### | | ???????##### % [###################### ### | | ??????##"T"### % | | ??????##" %[#+############### | | ??????######## %#%############### ### ### | | ??????########### ##???????????## ### ### | +----------------------------------------------------+ Best States ------------- Heat Dissipation 67 Coolant Potential 50 Energy Generation 15 Energy Capacity 375 Matter Stores 300 Matter Capacity 300 Sight Range 16 Terrain Scan Density 10 Armor Coverage 225 Evasion (%) 55 Particle Charging 15 Offensive Hacking 10 Defensive Hacking 10 Item Schematics ----------------- None Robot Schematics ------------------ None Fabricated ------------ Nothing Alien Tech Used ----------------- None Achievements -------------- None Challenges ------------ None Game ------ Seed RelayDecoderDisintegrator Manual? 0 Play Time 00:28:45 Cumulative 93.0 hours Start 2024.04.27 @ 17:39:14 End 2024.04.27 @ 18:26:15 Sessions 1 Manual Loads 0 Difficulty Rogue Special Mode None Game No. 183 Rogue 181 Adventurer 2 Explorer 0 Win Type - Total 3 Types 2/0/0/1/0/0/0/0/0 Lore% 54 Gallery% 53 Achievement% 41 Wizard Run 0 Options --------- Layout 0 ASCII 0 Keyboard 1 Movement Numpad Keybinds 1 Fullscreen 2 Font 18/SmallcapsGlow Map View 76x50 Zoom Use 0% Tactical HUD 1 Map Filters NONE Filters NONE Steam 1 RUN: e73c7f16-0565-4fe0-8e75-57f4c018ef36